fUSD/lending_fUSD_20260203
["ID","MTS","AMOUNT","RATE_DAILY","PERIOD"]
[404444502,1770145841625,-151.0,0.00017998,5]
[404444503,1770145841635,-209.40437684,0.00017998,5]
[404444504,1770145841645,-209.40437685,0.00017998,5]
[404444505,1770145841655,-1004.24833386,0.00017999,5]
[404444506,1770145841667,-155.0,0.00017999,2]
[404444507,1770145841677,-300.0,0.00017999,2]
[404444508,1770145841687,-419.12847376,0.00017999,2]
[404444509,1770145841696,-300.0,0.00017999,2]
[404444510,1770145841706,-666.0,0.00017999,2]
[404444511,1770145841716,-555.66,0.00017999,2]
[404444512,1770145841726,-1000.0,0.00018,2]
[404444513,1770145841737,-215.41950212,0.00018,2]
[404444514,1770145841747,-2123086.41230133,0.00018,2]
[404444515,1770145842170,-254.18043806,0.00018,2]
[404444516,1770145842182,-4125.11779461,0.00018,2]
[404444517,1770145842228,-627.48158789,0.00018,2]
[404444518,1770145842239,-987.12095615,0.00018,2]
[404444519,1770145842255,-10659.80250457,0.00018,2]
[404444520,1770145842266,-1416.40035,0.00018,2]
[404444521,1770145842277,-793.66649967,0.00018,2]
[404444522,1770145842498,-390.15740709,0.00015936,7]
[404444523,1770145842510,-108.47514791,0.00015936,7]
[404444524,1770145842519,-160.0,0.000172,7]
[404444525,1770145842528,-277.51395056,0.00018,2]
[404444526,1770145842539,-1104.745,0.00018,2]
[404444527,1770145842569,-9077.05967516,0.00018,2]
[404444528,1770145842589,-808.42449469,0.00018,2]
[404444529,1770145842603,-3680.5,0.00018,2]
[404444530,1770145842617,-6836494.80274366,0.00018,2]
[404444531,1770145842628,-2000.88772904,0.00018,2]
[404444532,1770145842637,-587.23,0.00018,7]
[404444533,1770145842646,-305.11894367,0.00018,2]
[404444534,1770145842655,-180.33941038,0.00018,2]
[404444535,1770145842664,-200.54280823,0.00018,2]
[404444536,1770145842673,-249.79285804,0.00018,2]
[404444537,1770145842682,-663533.74679206,0.00018,2]
[404444541,1770145843652,-500.0,0.00014047,2]
[404444542,1770145843662,-500.0,0.00014321,2]
[404444543,1770145843672,-500.0,0.00014595,2]
[404444544,1770145843682,-559.5052,0.00018,2]
[404444545,1770145844491,-301.5946,0.00018,2]
[404444637,1770145845874,-735.4700684,9.9e-05,2]
[404444648,1770145845983,-1764.5299316,9.9e-05,2]
[404444650,1770145845992,-3527.44937811,0.00018,2]
[404444654,1770145846037,-6809.66373694,0.00018,2]
[404444875,1770145884401,-300.0,8.076e-05,2]
[404444876,1770145884428,-500.0,8.077e-05,2]
[404444877,1770145884453,-500.0,8.077e-05,2]
[404444878,1770145884476,-500.0,8.077e-05,2]
[404444879,1770145884501,-500.0,8.077e-05,2]
[404444880,1770145884526,-500.0,8.077e-05,2]
[404444881,1770145884551,-308.94587271,8.077e-05,2]
[404444882,1770145884582,-500.0,8.606e-05,2]
[404444883,1770145884619,-500.0,8.606e-05,2]
[404444884,1770145884642,-451.51338853,8.606e-05,2]
[404444885,1770145884665,-420.0,8.883e-05,2]
[404444886,1770145884687,-300.0,8.884e-05,2]
[404444887,1770145884711,-500.0,8.884e-05,2]
[404444888,1770145884733,-300.0,9.111e-05,2]
[404444889,1770145884755,-300.0,9.111e-05,2]
[404444890,1770145884779,-300.0,9.111e-05,2]
[404444891,1770145884805,-300.0,9.111e-05,2]
[404444892,1770145884835,-587.0,9.772e-05,2]
[404444894,1770145900587,6726.6528,7.978e-05,2]
[404444895,1770145903695,-209.0,0.00010749,2]
[404444896,1770145903718,-166.66,0.00010959,2]
[404444897,1770145903742,-166.66,0.00011068,2]
[404444898,1770145903766,-166.66,0.00011178,2]
[404444899,1770145903788,-166.66,0.00011288,2]
[404444900,1770145903810,-1157.01554953,0.00011288,2]
[404444901,1770145903846,-250.0,0.00011308,2]
[404444902,1770145903867,-166.66,0.00011397,2]
[404444903,1770145903890,-166.66,0.00011507,2]
[404444904,1770145903912,-500.0,0.00011557,2]
[404444905,1770145903936,-263.84974243,0.00011557,2]
[404444906,1770145903959,-500.0,0.00011557,2]
[404444907,1770145903981,-568.61521274,0.00011557,2]
[404444908,1770145904008,-500.0,0.00011557,2]
[404444909,1770145904035,-500.0,0.00011557,2]
[404444910,1770145904058,-500.0,0.00011557,2]
[404444911,1770145904088,-500.0,0.00011557,2]
[404444912,1770145904115,-500.0,0.00011557,2]
[404444913,1770145904139,-500.0,0.00011557,2]
[404444914,1770145904160,-500.0,0.00011557,2]
[404444915,1770145904185,-500.0,0.00011557,2]
[404444916,1770145904207,-232.69158005,0.00011557,2]
[404444917,1770145904232,-425.39040106,0.00011557,2]
[404444918,1770145904256,-500.0,0.00011557,2]
[404444919,1770145904276,-500.0,0.00011557,2]
[404444920,1770145906811,237.3167,7.978e-05,2]
[404444921,1770145910899,362.04875295,0.00011557,2]
[404444929,1770145933866,-500.0,0.00011017,2]
[404444930,1770145933890,-300.0,0.00012118,2]
[404444931,1770145933913,-300.0,0.00012357,2]
[404444932,1770145933935,-300.0,0.00013506,2]
[404444933,1770145933965,-300.0,0.00013506,2]
[404444934,1770145933990,-300.0,0.00013506,2]
[404444935,1770145934021,-419.12847376,0.00013698,2]
[404444936,1770145934046,-150.42894433,0.00013932,2]
[404444937,1770145934457,195.0,0.00012118,2]
[404444938,1770145934764,195.0,0.00011568,2]
[404444939,1770145935003,195.0,0.00012625,2]
[404444941,1770145937350,33292.3487,8.737e-05,2]
[404444943,1770145951802,500.0,0.00010997,2]
[404444944,1770145952513,124772.09388191,7.158e-05,2]
[404444945,1770145965402,-3186.80222157,7.158e-05,2]
[404444946,1770145967187,-302.0,7.158e-05,2]
[404444947,1770145970193,-309.42108336,7.158e-05,2]
[404444948,1770145972338,-302.0,7.158e-05,2]
[404444949,1770145975836,-1797.15415386,7.158e-05,2]
[404444950,1770145977589,-728.97051473,7.158e-05,2]
[404444951,1770145979630,-200.0,7.158e-05,2]
[404444952,1770145981157,-2985.85915754,7.158e-05,2]
[404444953,1770145982750,-300.0,7.158e-05,2]
[404444954,1770145984343,-389.59890796,7.158e-05,2]
[404444955,1770145985851,-299.49061193,7.158e-05,2]
[404444956,1770145991149,-560.22087833,7.158e-05,2]
[404444957,1770145992873,-450.19080258,7.158e-05,2]
[404444958,1770145996325,-300.0,7.158e-05,2]
[404444965,1770146001591,2902.68857008,7.058e-05,2]
[404444966,1770146001961,-302.0,7.158e-05,2]
[404444968,1770146005199,-500.0,7.158e-05,2]
[404444969,1770146005320,1400.0,6.7e-05,2]
[404444970,1770146007114,-261.40109204,7.158e-05,2]
[404444971,1770146007431,697.32142992,6.8e-05,2]
[404444972,1770146007454,2202.67857008,6.8e-05,2]
[404444976,1770146009450,-822.01390266,7.158e-05,2]
[404444977,1770146009772,4400.0,6.9e-05,2]
[404444978,1770146012342,3397.33142992,7e-05,2]
[404444979,1770146012367,2502.66857008,7e-05,2]
[404444980,1770146014944,-1376.4768139,7.158e-05,2]
[404444981,1770146018208,-469.22422718,7.158e-05,2]
[404444982,1770146021616,-439.10829603,7.158e-05,2]
[404444983,1770146025837,-377.71399691,7.158e-05,2]
[404444986,1770146031077,-250.0,7.158e-05,2]
[404444989,1770146037571,-500.0,7.158e-05,2]
[404444991,1770146040102,-452.0,7.158e-05,2]
[404444992,1770146042176,-471.24218522,7.158e-05,2]
[404444994,1770146047819,-800.03836094,7.158e-05,2]
[404444997,1770146050380,-200.0,7.158e-05,2]
[404445000,1770146055980,-450.74110851,7.158e-05,2]
[404445001,1770146056743,-10000.01,7.158e-05,2]
[404445002,1770146056866,-10000.01,7.158e-05,2]
[404445003,1770146057233,-10000.01,7.158e-05,2]
[404445004,1770146057383,-10000.01,7.158e-05,2]
[404445005,1770146057517,-10000.01,7.158e-05,2]
[404445006,1770146057623,-10000.01,7.158e-05,2]
[404445007,1770146057756,-10000.01,7.158e-05,2]
[404445008,1770146057858,-10000.01,7.158e-05,2]
[404445009,1770146057979,-10000.01,7.158e-05,2]
[404445010,1770146059422,-10000.01,7.158e-05,2]
[404445013,1770146062489,-10000.01,7.158e-05,2]
[404445014,1770146062601,-10000.01,7.158e-05,2]
[404445015,1770146062821,-10000.01,7.158e-05,2]
[404445016,1770146062927,-10000.01,7.158e-05,2]
[404445017,1770146063074,-10000.01,7.158e-05,2]
[404445018,1770146063212,-10000.01,7.158e-05,2]
[404445019,1770146063321,-10000.01,7.158e-05,2]
[404445020,1770146063439,-10000.01,7.158e-05,2]
[404445021,1770146064477,-304.60692626,7.158e-05,2]
[404445026,1770146072236,-250.0,7.158e-05,2]
[404445028,1770146074859,-205.10128485,7.158e-05,2]
[404445030,1770146078054,-302.0,7.158e-05,2]
[404445032,1770146080656,-205.68075659,7.158e-05,2]
[404445034,1770146085144,-313.97609342,7.158e-05,2]
[404445036,1770146087725,-302.0,7.158e-05,2]
[404445038,1770146093447,-154.90277233,7.158e-05,2]
[404445040,1770146095170,-223.42942549,7.158e-05,2]
[404445042,1770146097379,-199.75245602,7.158e-05,2]
[404445046,1770146101452,300.0,7.157e-05,2]
[404445047,1770146101488,1200.0,7.157e-05,2]
[404445048,1770146101524,300.0,7.157e-05,2]
[404445049,1770146102445,300.0,7.157e-05,2]
[404445050,1770146102529,150.0,7.157e-05,2]
[404445051,1770146102636,-255.99999983,7.158e-05,2]
[404445053,1770146103907,247.34142992,7.157e-05,2]
[404445054,1770146103929,52.65857008,7.157e-05,2]
[404445055,1770146104677,345.91474539,7.158e-05,2]
[404445056,1770146105326,1116.17164634,7.158e-05,2]
[404445057,1770146105379,-166.66000017,7.158e-05,2]
[404445058,1770146105756,1024.86760112,7.158e-05,2]
[404445062,1770146109281,183.81604272,7.157e-05,2]
[404445065,1770146110682,283.58259073,7.157e-05,2]
[404445072,1770146121264,-181.69653291,7.158e-05,2]
[404445073,1770146123056,-362.88705281,7.158e-05,2]
[404445075,1770146125028,-419.45347374,7.158e-05,2]
[404445076,1770146125351,500.0,7.157e-05,2]
[404445077,1770146125397,500.0,7.157e-05,2]
[404445078,1770146125436,500.0,7.157e-05,2]
[404445079,1770146125485,492.99880362,7.157e-05,2]
[404445080,1770146125508,7.00119638,7.157e-05,2]
[404445081,1770146125555,500.0,7.157e-05,2]
[404445082,1770146125596,500.0,7.157e-05,2]
[404445083,1770146125639,500.0,7.157e-05,2]
[404445084,1770146125684,500.0,7.157e-05,2]
[404445085,1770146125722,500.0,7.157e-05,2]
[404445086,1770146125761,500.0,7.157e-05,2]
[404445087,1770146125802,500.0,7.157e-05,2]
[404445088,1770146125881,500.0,7.157e-05,2]
[404445089,1770146125924,500.0,7.157e-05,2]
[404445090,1770146125982,493.00880362,7.157e-05,2]
[404445091,1770146126006,6.99119638,7.157e-05,2]
[404445092,1770146126046,500.0,7.157e-05,2]
[404445093,1770146126089,500.0,7.157e-05,2]
[404445094,1770146126137,500.0,7.157e-05,2]
[404445095,1770146126184,500.0,7.157e-05,2]
[404445096,1770146126224,500.0,7.157e-05,2]
[404445097,1770146126276,500.0,7.157e-05,2]
[404445098,1770146126324,500.0,7.157e-05,2]
[404445099,1770146126382,500.0,7.157e-05,2]
[404445100,1770146126541,282.57996333,7.157e-05,2]
[404445101,1770146127184,-205.0,7.158e-05,2]
[404445104,1770146129604,-1018.38061974,7.158e-05,2]
[404445108,1770146136903,500.0,7.157e-05,2]
[404445109,1770146136944,210.43884029,7.157e-05,2]
[404445110,1770146136968,289.56115971,7.157e-05,2]
[404445111,1770146137013,500.0,7.157e-05,2]
[404445112,1770146137052,500.0,7.157e-05,2]
[404445113,1770146137104,500.0,7.157e-05,2]
[404445114,1770146137147,500.0,7.157e-05,2]
[404445115,1770146137187,500.0,7.157e-05,2]
[404445116,1770146137225,500.0,7.157e-05,2]
[404445117,1770146137263,500.0,7.157e-05,2]
[404445118,1770146137316,500.0,7.157e-05,2]
[404445119,1770146137365,282.57996333,7.157e-05,2]
[404445120,1770146137408,427.86887696,7.157e-05,2]
[404445121,1770146137432,72.13112304,7.157e-05,2]
[404445122,1770146137475,500.0,7.157e-05,2]
[404445123,1770146137514,500.0,7.157e-05,2]
[404445124,1770146137553,500.0,7.157e-05,2]
[404445125,1770146137591,500.0,7.157e-05,2]
[404445126,1770146137644,500.0,7.157e-05,2]
[404445127,1770146137689,500.0,7.157e-05,2]
[404445128,1770146137732,500.0,7.157e-05,2]
[404445129,1770146137779,500.0,7.157e-05,2]
[404445130,1770146137823,500.0,7.157e-05,2]
[404445131,1770146138053,-302.0,7.158e-05,2]
[404445134,1770146141935,-497.86351717,7.158e-05,2]
[404445136,1770146144785,-343.92403158,7.158e-05,2]
[404445139,1770146147188,-560.22087833,7.158e-05,2]
[404445140,1770146150978,378.91931925,7.157e-05,2]
[404445142,1770146151442,-417.72240687,7.158e-05,2]
[404445145,1770146157822,-1272.99443318,7.158e-05,2]
[404445148,1770146161345,-300.0,7.158e-05,2]
[404445153,1770146167304,48.95955771,7.157e-05,2]
[404445154,1770146167326,107.25641676,7.157e-05,2]
[404445155,1770146168357,-354.54012174,7.158e-05,2]
[404445157,1770146170986,343.88541749,7.157e-05,2]
[404445158,1770146173646,-262.07596842,7.158e-05,2]
[404445159,1770146174354,332.51243398,7.157e-05,2]
[404445162,1770146179776,-174.59224297,7.158e-05,2]
[404445163,1770146181461,-495.08626065,7.158e-05,2]
[404445166,1770146185325,-336.79145284,7.158e-05,2]
[404445168,1770146187329,500.0,7.157e-05,2]
[404445169,1770146187374,500.0,7.157e-05,2]
[404445171,1770146187433,500.0,7.157e-05,2]
[404445174,1770146187503,600.71844815,7.157e-05,2]
[404445175,1770146191739,-479.13010388,7.158e-05,2]
[404445181,1770146194605,-173.50031818,7.158e-05,2]
[404445182,1770146200407,-302.0,7.158e-05,2]
[404445183,1770146203281,-313.97609342,7.158e-05,2]
[404445184,1770146204817,-2866.63634917,7.158e-05,2]
[404445185,1770146207033,-310.48239809,7.158e-05,2]
[404445186,1770146210278,-500.0,7.158e-05,2]
[404445187,1770146211874,-798.09722767,7.158e-05,2]
[404445188,1770146213918,-198.0,7.158e-05,2]
[404445189,1770146215441,-1073.24458984,7.158e-05,2]
[404445190,1770146217412,-1070.0,7.158e-05,2]
[404445191,1770146220078,-560.22087833,7.158e-05,2]
[404445192,1770146221610,-500.0,7.158e-05,2]
[404445193,1770146221798,300.0,7.157e-05,2]
[404445194,1770146224388,-241.10012185,7.158e-05,2]
[404445195,1770146230454,-300.0,7.158e-05,2]
[404445196,1770146231954,-170.06855009,7.158e-05,2]
[404445197,1770146233676,-245.06346995,7.158e-05,2]
[404445198,1770146237536,-215.54946833,7.158e-05,2]
[404445199,1770146239659,-500.0,7.158e-05,2]
[404445200,1770146245469,-651.0,7.158e-05,2]
[404445201,1770146248356,-184.59508807,7.158e-05,2]
[404445202,1770146249445,267.6807,7.058e-05,2]
[404445204,1770146258490,-250.00209646,7.158e-05,2]
[404445205,1770146261806,-500.0,7.158e-05,2]
[404445209,1770146263863,-302.0,7.158e-05,2]
[404445210,1770146265394,-550.0,7.158e-05,2]
[404445212,1770146270044,-252.76591589,7.158e-05,2]
[404445214,1770146272832,1547.95658362,7.058e-05,2]
[404445215,1770146272868,5000.01,7.058e-05,2]
[404445216,1770146272901,5000.01,7.058e-05,2]
[404445217,1770146272931,5000.01,7.058e-05,2]
[404445218,1770146272970,10000.01,7.058e-05,2]
[404445219,1770146273005,10000.01,7.058e-05,2]
[404445220,1770146273042,10000.01,7.058e-05,2]
[404445221,1770146273081,10000.01,7.058e-05,2]
[404445222,1770146273121,10000.01,7.058e-05,2]
[404445223,1770146273158,10000.01,7.058e-05,2]
[404445224,1770146273201,10000.01,7.058e-05,2]
[404445225,1770146273242,10000.01,7.058e-05,2]
[404445226,1770146273277,5000.01,7.058e-05,2]
[404445227,1770146273314,10000.01,7.058e-05,2]
[404445228,1770146273348,5000.01,7.058e-05,2]
[404445229,1770146273383,5000.01,7.058e-05,2]
[404445230,1770146273422,5000.01,7.058e-05,2]
[404445231,1770146273458,5000.01,7.058e-05,2]
[404445232,1770146273492,5000.01,7.058e-05,2]
[404445233,1770146273866,-424.51149527,7.058e-05,2]
[404445234,1770146275916,-280.77359984,7.058e-05,2]
[404445235,1770146278222,-300.0,7.058e-05,2]
[404445236,1770146280404,-4343.13154621,7.058e-05,2]
[404445237,1770146280482,-488.02390658,7.058e-05,2]
[404445238,1770146280516,-5000.01,7.058e-05,2]
[404445239,1770146280653,-5000.01,7.058e-05,2]
[404445240,1770146280752,-5000.01,7.058e-05,2]
[404445241,1770146280891,-5000.01,7.058e-05,2]
[404445242,1770146281005,-5000.01,7.058e-05,2]
[404445243,1770146281132,-5000.01,7.058e-05,2]
[404445244,1770146281280,-5000.01,7.058e-05,2]
[404445245,1770146281440,-5000.01,7.058e-05,2]
[404445247,1770146282026,-250.0,7.058e-05,2]
[404445248,1770146282593,-5000.01,7.058e-05,2]
[404445249,1770146282713,-5000.01,7.058e-05,2]
[404445250,1770146282817,-5000.01,7.058e-05,2]
[404445251,1770146282964,-5000.01,7.058e-05,2]
[404445252,1770146283084,-5000.01,7.058e-05,2]
[404445253,1770146283214,-5000.01,7.058e-05,2]
[404445254,1770146283344,-5000.01,7.058e-05,2]
[404445255,1770146283446,-5000.01,7.058e-05,2]
[404445256,1770146283577,-5000.01,7.058e-05,2]
[404445257,1770146283691,-5000.01,7.058e-05,2]
[404445258,1770146283891,300.0,7.057e-05,2]
[404445259,1770146284111,-5000.01,7.058e-05,2]
[404445260,1770146284232,-5000.01,7.058e-05,2]
[404445261,1770146284355,-5000.01,7.058e-05,2]
[404445262,1770146284460,-5000.01,7.058e-05,2]
[404445263,1770146284587,-5000.01,7.058e-05,2]
[404445264,1770146286277,-310.22087833,7.058e-05,2]
[404445265,1770146286485,150.0,7.057e-05,2]
[404445266,1770146288439,-2053.0,7.058e-05,2]
[404445269,1770146289892,-193.0,7.058e-05,2]
[404445270,1770146293688,-354.90584462,7.058e-05,2]
[404445271,1770146295808,-232.6908194,7.058e-05,2]
[404445273,1770146297285,-318.49932487,7.058e-05,2]
[404445274,1770146301286,-1045.99429143,7.058e-05,2]
[404445275,1770146303448,-360.47797617,7.058e-05,2]
[404445276,1770146305179,-174.56232373,7.058e-05,2]
[404445277,1770146309854,-250.0,7.058e-05,2]
[404445278,1770146311546,10644.42392723,6.429e-05,7]
[404445279,1770146312170,-500.0,7.058e-05,2]
[404445280,1770146317143,-281.24012483,7.058e-05,2]
[404445281,1770146321179,-735.69,7.058e-05,2]
[404445284,1770146324977,-373.99821254,7.058e-05,2]
[404445285,1770146326714,-481.07873741,7.058e-05,2]
[404445286,1770146328752,-560.22087833,7.058e-05,2]
[404445287,1770146331892,-500.0,7.058e-05,2]
[404445288,1770146334065,-163.20854716,7.058e-05,2]
[404445289,1770146336795,-151.94693045,7.058e-05,2]
[404445290,1770146338289,-948.24399851,7.058e-05,2]
[404445291,1770146341615,300.0,7.057e-05,2]
[404445292,1770146341929,-573.71642087,7.058e-05,2]
[404445293,1770146344040,-256.18473448,7.058e-05,2]
[404445294,1770146345645,-500.0,7.058e-05,2]
[404445299,1770146347241,-300.0,7.058e-05,2]
[404445300,1770146350964,-201.87285383,7.058e-05,2]
[404445301,1770146354051,307.85899564,7.057e-05,2]
[404445302,1770146354293,240.71979224,7.057e-05,2]
[404445303,1770146354771,-907.2260868,7.058e-05,2]
[404445304,1770146355833,500.16744708,7.057e-05,2]
[404445305,1770146355884,500.0,7.057e-05,2]
[404445306,1770146355938,233.41316091,7.057e-05,2]
[404445307,1770146355996,500.0,7.057e-05,2]
[404445308,1770146356063,500.0,7.057e-05,2]
[404445309,1770146356126,500.0,7.057e-05,2]
[404445310,1770146356221,556.51599266,7.057e-05,2]
[404445311,1770146357507,-153.19,7.058e-05,2]
[404445312,1770146360962,-651.0,7.058e-05,2]
[404445314,1770146363478,-427.99821254,7.058e-05,2]
[404445315,1770146365603,-508.40491193,7.058e-05,2]
[404445317,1770146368020,-15642.98604797,7.058e-05,2]
[404445318,1770146371393,-250.0,7.058e-05,2]
[404445319,1770146374724,-500.0,7.058e-05,2]
[404445320,1770146375297,725.9878847,7.053e-05,2]
[404445321,1770146376262,-322.20939922,7.058e-05,2]
[404445322,1770146378346,-187.77873936,7.058e-05,2]
[404445323,1770146381237,-210.8813549,7.058e-05,2]
[404445324,1770146382980,-175.6316,7.058e-05,2]
[404445325,1770146384697,-300.0,7.058e-05,2]
[404445327,1770146389325,-195.0,7.058e-05,2]
[404445331,1770146393814,-2500.0,7.058e-05,2]
[404445334,1770146395333,-356.2518431,7.058e-05,2]
[404445336,1770146398096,-300.0,7.058e-05,2]
[404445337,1770146400711,-650.0,7.058e-05,2]
[404445338,1770146401456,300.0,7.057e-05,2]
[404445339,1770146401503,300.0,7.057e-05,2]
[404445340,1770146401539,1200.0,7.057e-05,2]
[404445341,1770146403385,-515.26350608,7.058e-05,2]
[404445342,1770146404636,210.0,7.058e-05,2]
[404445343,1770146405478,-300.0,7.058e-05,2]
[404445344,1770146406979,-1622.9577214,7.058e-05,2]
[404445345,1770146409211,-386.24934048,7.058e-05,2]
[404445348,1770146410905,-180.81215356,7.058e-05,2]
[404445349,1770146414592,-235.0,7.058e-05,2]
[404445351,1770146416992,-250.0,7.058e-05,2]
[404445352,1770146417879,196.13,7e-05,2]
[404445353,1770146420679,-1911.74535456,7.058e-05,2]
[404445354,1770146422826,-237.92403158,7.058e-05,2]
[404445355,1770146426751,-276.24814607,7.058e-05,2]
[404445356,1770146428917,-250.0,7.058e-05,2]
[404445357,1770146431787,-300.0,7.058e-05,2]
[404445358,1770146435204,-213.73649392,7.058e-05,2]
[404445359,1770146437640,-207.13383015,7.058e-05,2]
[404445360,1770146439377,-1068.98591878,7.058e-05,2]
[404445361,1770146441423,-401.74706175,7.058e-05,2]
[404445362,1770146443861,-280.68245673,7.058e-05,2]
[404445363,1770146447170,-448.20652452,7.058e-05,2]
[404445364,1770146452038,-217.61663733,7.058e-05,2]
[404445365,1770146455891,-241.68153369,7.058e-05,2]
[404445366,1770146457885,-1292.29277205,7.058e-05,2]
[404445367,1770146459362,-569.38202051,7.058e-05,2]
[404445368,1770146461718,300.0,7.057e-05,2]
[404445369,1770146462505,150.0,7.057e-05,2]
[404445373,1770146468688,-344.67141,7.058e-05,2]
[404445374,1770146470304,-500.00000017,7.058e-05,2]
[404445375,1770146472389,-302.00967775,7.058e-05,2]
[404445376,1770146473943,-385.62863536,7.058e-05,2]
[404445377,1770146475963,-1219.39511878,7.058e-05,2]
[404445378,1770146479621,-1492.90782458,7.058e-05,2]
[404445379,1770146482796,-202.63053104,7.058e-05,2]
[404445382,1770146485494,-560.22087833,7.058e-05,2]
[404445383,1770146486954,-467.41,7.058e-05,2]
[404445384,1770146489004,-1061.64190853,7.058e-05,2]
[404445385,1770146491270,-1443.87030229,7.058e-05,2]
[404445386,1770146493456,495.003,6.917e-05,2]
[404445387,1770146497742,-208.89063738,7.058e-05,2]
[404445388,1770146499921,566.37312264,6.917e-05,2]
[404445389,1770146499945,4037.02687736,6.917e-05,2]
[404445390,1770146501875,-500.0,7.058e-05,2]
[404445391,1770146503934,-305.39590766,7.058e-05,2]
[404445392,1770146506676,-190.48782475,7.058e-05,2]
[404445393,1770146511915,-194.60946896,7.058e-05,2]
[404445394,1770146514839,-178.40782115,7.058e-05,2]
[404445395,1770146519103,-354.35807597,7.058e-05,2]
[404445396,1770146520707,-250.0,7.058e-05,2]
[404445397,1770146522306,-300.0,7.058e-05,2]
[404445398,1770146523883,-186.95725977,7.058e-05,2]
[404445399,1770146528576,-224.64771981,7.058e-05,2]
[404445400,1770146529468,151.0,7.055e-05,2]
[404445401,1770146530140,-270.85209755,7.058e-05,2]
[404445402,1770146531641,-941.09340934,7.058e-05,2]
[404445403,1770146534251,-156.07596842,7.058e-05,2]
[404445404,1770146539218,-192.84025859,7.058e-05,2]
[404445405,1770146544479,-500.0,7.058e-05,2]
[404445406,1770146581651,300.0,7.057e-05,2]
[404445409,1770146592831,511.98312264,6.958e-05,2]
[404445410,1770146592855,5000.01,6.958e-05,2]
[404445411,1770146592882,5000.01,6.958e-05,2]
[404445412,1770146592906,5000.01,6.958e-05,2]
[404445413,1770146592931,5000.01,6.958e-05,2]
[404445414,1770146592955,5000.01,6.958e-05,2]
[404445415,1770146592979,5000.01,6.958e-05,2]
[404445416,1770146593003,5000.01,6.958e-05,2]
[404445417,1770146593029,10000.01,6.958e-05,2]
[404445418,1770146593055,10000.01,6.958e-05,2]
[404445419,1770146593086,10000.01,6.958e-05,2]
[404445420,1770146593115,10000.01,6.958e-05,2]
[404445421,1770146593143,10000.01,6.958e-05,2]
[404445422,1770146593170,10000.01,6.958e-05,2]
[404445423,1770146593195,10000.01,6.958e-05,2]
[404445424,1770146593222,10000.01,6.958e-05,2]
[404445425,1770146593249,10000.01,6.958e-05,2]
[404445426,1770146593274,5000.01,6.958e-05,2]
[404445427,1770146593297,5000.01,6.958e-05,2]
[404445428,1770146595146,-1417.85060413,6.958e-05,2]
[404445429,1770146595208,-5000.01,6.958e-05,2]
[404445430,1770146595358,-5000.01,6.958e-05,2]
[404445431,1770146595417,-5000.01,6.958e-05,2]
[404445432,1770146599621,-5000.01,6.958e-05,2]
[404445433,1770146599741,-5000.01,6.958e-05,2]
[404445434,1770146599851,-5000.01,6.958e-05,2]
[404445435,1770146600368,-5000.01,6.958e-05,2]
[404445436,1770146600939,-5000.01,6.958e-05,2]
[404445437,1770146601000,-5000.01,6.958e-05,2]
[404445438,1770146601017,-5000.01,6.958e-05,2]
[404445439,1770146601034,-5000.01,6.958e-05,2]
[404445440,1770146601063,-5000.01,6.958e-05,2]
[404445441,1770146601155,-5000.01,6.958e-05,2]
[404445442,1770146601289,-5000.01,6.958e-05,2]
[404445443,1770146601493,-5000.01,6.958e-05,2]
[404445444,1770146601632,-5000.01,6.958e-05,2]
[404445445,1770146602010,-5000.01,6.958e-05,2]
[404445446,1770146602125,-5000.01,6.958e-05,2]
[404445447,1770146605500,-5000.01,6.958e-05,2]
[404445448,1770146605618,-5000.01,6.958e-05,2]
[404445449,1770146605728,-5000.01,6.958e-05,2]
[404445451,1770146605851,-5000.01,6.958e-05,2]
[404445453,1770146606211,-5000.01,6.958e-05,2]
[404445454,1770146606262,-5000.01,6.958e-05,2]
[404445455,1770146606275,-5000.01,6.958e-05,2]
[404445456,1770146606321,-5000.01,6.958e-05,2]
[404445457,1770146606446,-5000.01,6.958e-05,2]
[404445458,1770146606563,-5000.01,6.958e-05,2]
[404445459,1770146606700,-5000.01,6.958e-05,2]